bitfinex/quotes_ETHUSD_20260225
["timestamp","ask_amount","ask_price","bid_price","bid_amount"]
[1772036061776,8.93232295,2023.4,2022.4,8.62705197]
[1772036062386,8.93232295,2023.4,2022.5,20.909369]
[1772036062593,8.93232295,2023.4,2022.5,1.2360632]
[1772036062795,7.10832295,2023.4,2022.5,7.41896649]
[1772036063003,1.23554413,2023.4,2022.7,6.18290329]
[1772036063169,1.23548307,2023.5,2022.7,6.18290329]
[1772036064570,1.23548307,2023.5,2022.8,1.23591061]
[1772036065187,1.23548307,2023.5,2022.7,9.32382483]
[1772036065386,1.23221633,2023.5,2022.7,9.32382483]
[1772036065807,1.23221633,2023.5,2022.7,3.14092154]
[1772036065966,1.23221633,2023.5,2022.8,6.01914535]
[1772036066381,6.93942587,2023.5,2022.7,1.23592154]
[1772036066708,1.23578843,2023.0,2022.3,6.01914535]
[1772036069072,1.23578843,2023.0,2022.3,8.46329403]
[1772036069304,1.23578843,2023.0,2022.3,2.44414868]
[1772036069484,1.23578843,2023.0,2022.4,6.01914535]
[1772036070369,1.23578843,2023.0,2022.5,0.001]
[1772036070574,6.77340323,2023.0,2022.5,0.001]
[1772036070785,0.002,2022.9,2022.5,0.001]
[1772036071805,5.5396148,2022.9,2022.5,0.001]
[1772036073408,1.23591061,2022.8,2022.5,0.001]
[1772036074113,1.23591061,2022.8,2021.4,0.001]
[1772036074114,5.5376148,2022.5,2021.4,0.001]
[1772036074313,2.44414868,2022.6,2021.5,0.001]
[1772036074314,5.5376148,2022.2,2021.5,0.001]
[1772036074681,5.5376148,2022.5,2021.5,8.08656893]
[1772036074882,1.828,2022.4,2021.6,5.64142025]
[1772036075405,1.23621618,2022.3,2021.7,0.001]
[1772036075612,6.77383098,2022.3,2021.7,0.001]
[1772036078808,1.23621618,2022.3,2021.7,5.64242025]
[1772036078983,1.23609394,2022.5,2021.7,5.64242025]
[1772036079191,1.23609394,2022.5,2021.8,5.64142025]
[1772036080494,1.23609394,2022.5,2021.8,6.8779344]
[1772036080735,1.23609394,2022.5,2021.9,0.001]
[1772036081021,1.23509394,2022.5,2021.9,5.64142025]
[1772036081817,6.77358652,2022.8,2021.9,6.87787881]
[1772036082135,6.77358652,2022.8,2022.0,5.64142025]
[1772036082299,1.23597172,2022.8,2022.0,5.64142025]
[1772036082809,6.77358652,2022.8,2022.0,5.64142025]
[1772036083004,8.60658652,2022.8,2022.0,5.64142025]
[1772036083218,1.23789727,2022.9,2022.1,5.64142025]
[1772036083622,1.23789727,2022.9,2022.2,2.44414868]
[1772036083806,0.002,2022.9,2022.3,6.87757662]
[1772036084003,0.002,2022.9,2022.1,5.64142025]
[1772036084004,5.5396148,2022.9,2022.1,5.64142025]
[1772036084322,5.5396148,2022.9,2021.8,1.23650822]
[1772036084323,5.5396148,2022.9,2022.0,5.64142025]
[1772036084924,0.002,2022.3,2022.0,5.64142025]
[1772036086312,0.002,2022.5,2022.0,5.64142025]
[1772036087822,0.002,2022.5,2022.0,6.87781236]
[1772036088027,0.002,2022.5,2022.2,5.64142025]
[1772036090201,0.002,2022.5,2022.0,1.23639211]
[1772036090202,0.002,2022.5,2022.1,1.907]
[1772036091630,0.002,2022.5,2022.1,7.54842025]
[1772036092133,0.002,2022.5,2022.1,8.78473629]
[1772036092312,0.002,2022.5,2022.1,7.54842025]
[1772036093924,0.002,2022.5,2022.1,8.78475257]
[1772036095917,0.002,2022.5,2022.1,8.78475827]
[1772036096118,5.5041826,2022.5,2021.9,5.77438369]
[1772036096334,1.23615506,2022.4,2021.9,0.001]
[1772036097215,6.73833766,2022.4,2021.9,0.001]
[1772036097411,1.23615506,2022.4,2021.9,5.77438369]
[1772036097613,6.73833766,2022.4,2021.7,0.001]
[1772036097803,5.5021826,2022.2,2021.7,0.001]
[1772036098218,1.828,2022.3,2021.7,0.001]
[1772036098535,1.23627732,2022.2,2021.7,0.001]
[1772036098850,6.73845992,2022.2,2021.7,0.001]
[1772036099329,6.73845992,2022.2,2022.0,0.001]
[1772036099736,6.73845992,2022.2,2021.5,1.23652102]
[1772036099907,6.73765992,2022.2,2021.4,7.01010353]
[1772036100709,3.06927053,2022.3,2021.6,5.77338369]
[1772036101436,1.23827053,2022.3,2021.8,5.77338369]
[1772036101635,0.002,2022.5,2021.9,5.77338369]
[1772036101818,1.23810466,2022.5,2021.9,7.00990471]
[1772036102714,0.002,2022.8,2022.2,5.77338369]
[1772036102912,1.2379164,2022.8,2022.4,5.77338369]
[1772036103118,1.2379164,2022.8,2022.1,2.58176535]
[1772036103443,6.740099,2022.8,2022.2,3.15052102]
[1772036103652,6.740099,2022.8,2022.2,1.914]
[1772036103861,6.740099,2022.8,2021.9,1.914]
[1772036105327,6.740099,2022.8,2022.0,7.00990471]
[1772036105515,6.740099,2022.8,2022.0,1.23652102]
[1772036105715,5.5021826,2022.6,2022.0,1.23652102]
[1772036106128,5.5021826,2022.6,2021.4,7.01013335]
[1772036106414,5.5021826,2022.6,2021.5,1.23652102]
[1772036106635,7.3341826,2022.5,2021.5,7.00990471]
[1772036107039,1.23615506,2022.4,2021.6,7.01002793]
[1772036107729,6.73833766,2022.4,2021.6,7.01002793]
[1772036108044,6.73833766,2022.4,2021.6,8.92202793]
[1772036108341,1.23535506,2022.4,2021.8,5.77338369]
[1772036108549,1.23535506,2022.4,2021.9,1.23652102]
[1772036108918,1.23603282,2022.6,2021.9,7.00990471]
[1772036109343,1.23603282,2022.6,2021.9,1.23652102]
[1772036109344,6.73821542,2022.6,2021.9,1.23652102]
[1772036109548,5.5021826,2022.5,2021.6,1.912]
[1772036109848,5.5021826,2022.5,2021.7,7.00990471]
[1772036110054,5.5021826,2022.5,2021.7,5.77338369]
[1772036110231,7.3341826,2022.5,2021.7,5.77338369]
[1772036110429,5.5021826,2022.5,2021.7,5.77338369]
[1772036111049,1.23615506,2022.4,2021.8,1.23652102]
[1772036111221,3.06915506,2022.4,2021.8,1.23652102]
[1772036111647,1.23615506,2022.4,2021.8,1.23652102]
[1772036111971,6.73833766,2022.4,2021.8,1.23652102]
[1772036112128,1.833,2022.3,2021.8,1.23652102]
[1772036113256,1.23547732,2022.2,2021.8,1.23652102]
[1772036113422,8.57265992,2022.2,2021.8,1.23652102]
[1772036113624,5.5021826,2022.1,2021.5,0.001]
[1772036113826,5.5021826,2022.1,2021.5,1.23752102]
[1772036114132,7.3371826,2022.0,2021.5,1.23752102]
[1772036114539,5.5021826,2022.0,2021.5,1.23752102]
[1772036115063,1.836,2021.9,2021.2,0.001]
[1772036115260,1.23652191,2021.8,2021.2,5.77438369]
[1772036115445,4.94524009,2022.2,2021.5,5.77338369]
[1772036116123,10.44742269,2022.2,2021.5,5.77338369]
[1772036116322,5.5021826,2022.1,2021.2,5.77438369]
[1772036117258,1.23646075,2021.9,2021.2,7.01121596]
[1772036117420,1.23646075,2021.9,2021.2,5.77438369]
[1772036117626,6.73864335,2021.9,2021.2,0.001]
[1772036118446,6.73864335,2021.9,2021.2,7.01125676]
[1772036119041,1.23633846,2022.2,2021.3,9.20186608]
[1772036119252,3.07253846,2022.2,2021.3,9.20186608]
[1772036119748,8.57472106,2022.2,2021.3,10.43864572]
[1772036121055,7.3391826,2022.1,2021.3,10.43864572]
[1772036121959,1.2363996,2022.0,2021.3,10.43864572]
[1772036122657,1.2363996,2022.0,2021.3,7.01016333]
[1772036123962,0.002,2022.4,2021.7,9.20186608]
[1772036124259,1.23815993,2022.4,2021.8,7.68638369]
[1772036124458,0.002,2022.4,2021.8,7.68638369]
[1772036124755,1.23610377,2022.5,2022.0,3.42848239]
[1772036125060,1.23803747,2022.6,2022.0,3.42848239]
[1772036125263,0.002,2022.2,2022.0,3.42848239]
[1772036125467,0.002,2022.6,2022.0,3.42848239]
[1772036125665,1.23788931,2022.9,2022.3,9.17258162]
[1772036125871,1.23788931,2022.9,2022.3,5.74409923]
[1772036126662,0.002,2022.9,2022.3,6.98031348]
[1772036127170,0.002,2022.9,2022.3,10.40879587]
[1772036127676,1.23777707,2023.1,2022.4,5.74409923]
[1772036127863,5.92163381,2022.9,2021.6,6.9807151]
[1772036128053,5.92163381,2022.8,2021.7,5.74409923]
[1772036128262,1.23777707,2023.1,2021.7,5.74409923]
[1772036128263,7.75963381,2022.7,2021.7,5.74409923]
[1772036128447,5.92163381,2022.7,2021.7,5.74409923]
[1772036128850,1.23603282,2022.6,2021.7,6.98064557]
[1772036129083,7.15766663,2022.6,2021.7,1.23658204]
[1772036129575,7.15766663,2022.6,2021.6,5.74409923]
[1772036129776,7.15766663,2022.6,2021.5,1.23770151]
[1772036129777,6.01416794,2022.4,2021.5,1.23770151]
[1772036129986,6.01416794,2022.4,2021.5,3.15270151]
[1772036130347,1.23603282,2022.6,2021.7,9.24492037]
[1772036131784,1.23603282,2022.6,2021.7,10.48147673]
[1772036132584,1.23603282,2022.6,2021.7,7.05299434]
[1772036133286,1.23603282,2022.6,2021.7,10.48147673]
[1772036135356,1.23603282,2022.6,2021.7,7.05299434]
[1772036135763,7.25020076,2022.6,2021.7,7.05299434]
[1772036136076,7.25020076,2022.6,2021.7,7.73143798]
[1772036136271,7.25020076,2022.6,2021.7,8.96801787]
[1772036136878,7.25020076,2022.6,2021.7,1.915]
[1772036137777,0.002,2022.4,2021.5,7.05411402]
[1772036137979,0.002,2022.4,2021.7,5.81643798]
[1772036138174,0.002,2022.4,2021.7,7.05297339]
[1772036138859,0.002,2022.4,2021.8,5.81643798]
[1772036139985,0.002,2022.9,2022.2,5.81643798]
[1772036140188,1.24003282,2022.9,2022.4,7.05253359]
[1772036140395,0.002,2022.9,2022.4,7.05253359]
[1772036141395,1.23787874,2022.9,2022.3,1.915]
[1772036141604,1.23803282,2022.8,2022.3,1.917]
[1772036142372,0.002,2022.9,2022.4,5.81643798]
[1772036142581,1.24003282,2022.9,2022.4,5.81643798]
[1772036142878,0.002,2023.1,2022.8,3.42848239]
[1772036143228,0.002,2024.2,2022.8,3.42848239]
[1772036143229,7.24297975,2024.6,2023.5,7.104322]
[1772036143497,7.24297975,2024.6,2023.5,5.81643798]
[1772036143672,7.24297975,2024.6,2023.6,1.918]
[1772036144283,4.6572942,2024.6,2023.6,1.918]
[1772036144484,6.01416794,2024.2,2023.3,15.600838]
[1772036144684,6.01416794,2024.2,2023.3,13.698273]
[1772036144901,6.01416794,2024.1,2023.3,13.698273]
[1772036146470,1.23517786,2024.0,2023.3,13.698273]
[1772036147197,1.23517786,2024.0,2023.2,1.49375677]
[1772036147501,1.23517786,2024.0,2023.3,17.432972]
[1772036148099,1.23517786,2024.0,2023.2,1.49375677]
[1772036148304,1.23517786,2024.0,2023.3,19.732972]
[1772036148486,4.9394538,2024.6,2023.5,4.66396546]
[1772036148487,7.24910174,2024.4,2023.5,4.66396546]
[1772036148679,7.24910174,2024.4,2023.6,1.92]
[1772036151000,0.002,2023.8,2023.6,1.92]
[1772036152676,0.002,2024.0,2023.6,1.92]
[1772036153111,6.01616794,2024.0,2023.1,28.449658]
[1772036153283,6.01616794,2024.0,2023.1,1.919]
[1772036154601,6.01416794,2023.7,2022.8,17.9965]
[1772036156616,5.77920448,2024.0,2022.9,5.57927617]
[1772036156794,7.01244337,2023.9,2022.9,5.57927617]
[1772036157214,7.01244337,2023.9,2022.9,5.57847617]
[1772036157513,7.01244337,2023.9,2022.8,30.0]
[1772036157710,5.77720448,2023.8,2022.8,30.0]
[1772036157913,5.77720448,2023.8,2022.8,23.102813]
[1772036158125,5.77720448,2023.6,2022.6,4.133]
[1772036158313,5.77720448,2023.5,2022.5,1.92]
[1772036158620,5.77720448,2023.3,2022.5,1.92]
[1772036159186,5.77720448,2023.3,2022.0,10.24413259]
[1772036159187,5.77720448,2023.3,2022.2,2.456912]
[1772036160196,5.77720448,2023.3,2022.2,2.456112]
[1772036160814,5.77720448,2023.3,2022.3,5.538508]
[1772036160815,5.77720448,2023.1,2022.3,5.538508]
[1772036161020,5.77720448,2023.1,2022.3,15.21469625]
[1772036161189,1.23566627,2023.2,2022.5,2.44691208]
[1772036161393,1.23566627,2023.2,2022.5,8.02618825]
[1772036161688,1.23546339,2023.6,2022.9,2.44691208]
[1772036161994,0.002,2024.0,2023.5,8.02618825]
[1772036162185,1.23718321,2024.0,2023.6,1.92]
[1772036162782,7.01438769,2024.0,2023.3,1.371]
[1772036163009,7.01438769,2024.0,2023.4,23.125398]
[1772036163010,1.23718321,2024.0,2023.4,23.125398]
[1772036163210,1.23718321,2024.0,2023.4,22.713417]
[1772036163399,1.23718321,2024.0,2023.3,6.95027617]
[1772036163594,1.23718321,2024.0,2023.4,15.831137]
[1772036163908,1.23718321,2024.0,2023.5,0.001]
[1772036164217,0.002,2023.8,2023.5,0.001]
[1772036164420,0.002,2024.0,2023.5,2.44791208]
[1772036164624,1.23703718,2024.3,2023.5,8.02718825]
[1772036164819,1.23703718,2024.3,2023.6,1.2848389]
[1772036165008,7.01424166,2024.3,2023.7,1.923]
[1772036165929,7.01424166,2024.3,2023.5,0.001]
[1772036165930,5.77720448,2024.2,2023.5,0.001]
[1772036166292,5.77720448,2024.2,2023.5,0.0002]
[1772036166538,5.77640448,2024.2,2023.5,0.0002]
[1772036166722,5.77640448,2024.2,2023.3,1.924]
[1772036166723,7.01250441,2023.8,2023.3,0.001]
[1772036167220,5.77720448,2023.7,2023.0,0.001]
[1772036167806,5.77720448,2023.6,2023.0,0.001]
[1772036168006,5.77720448,2023.4,2023.0,0.001]
[1772036168293,5.77720448,2023.4,2022.3,1.921]
[1772036168294,5.77720448,2023.3,2022.3,1.921]
[1772036168697,5.77720448,2023.1,2022.3,1.921]
[1772036169497,5.77720448,2023.1,2022.3,4.36791208]
[1772036169696,5.77640448,2023.1,2022.3,4.36791208]
[1772036169915,1.23566627,2023.2,2022.5,4.3851]
[1772036170905,4.94266508,2023.3,2022.5,1.23604377]
[1772036171301,1.23560519,2023.3,2022.7,16.492658]
[1772036172126,1.23560519,2023.3,2022.7,13.945038]
[1772036172327,7.01280967,2023.3,2022.4,5.57927617]
[1772036172501,7.01280967,2023.3,2022.4,2.979951]
[1772036172706,7.01280967,2023.3,2022.4,4.133951]
[1772036173423,7.01280967,2023.3,2022.4,5.37010603]
[1772036173622,7.01280967,2023.3,2022.3,3.15716716]
[1772036173918,7.01280967,2023.3,2022.4,8.521961]
[1772036174417,7.01280967,2023.3,2022.3,3.15721601]
[1772036174618,7.01280967,2023.3,2022.4,2.44691208]
[1772036174827,1.23560519,2023.3,2022.5,5.57927617]
[1772036175037,10.71948524,2023.4,2022.5,6.81531453]
[1772036175343,10.71948524,2023.4,2022.5,5.57927617]
[1772036175635,10.71948524,2023.4,2022.5,6.81536055]
[1772036175792,10.71948524,2023.4,2022.5,6.81536673]
[1772036176499,10.71948524,2023.4,2022.5,6.8153603]
[1772036177237,4.94228076,2023.4,2022.6,8.02718825]
[1772036177401,0.002,2024.0,2023.2,2.44691208]
[1772036177606,0.002,2024.0,2023.5,2.44691208]
[1772036177830,0.002,2024.0,2023.3,5.57927617]
[1772036178038,1.23705582,2024.2,2023.5,5.57927617]
[1772036179314,0.002,2024.2,2023.7,2.44691208]
[1772036179614,0.002,2024.2,2023.8,1.921]
[1772036180451,1.2369118,2024.5,2023.9,2.44691208]
[1772036180746,0.002,2024.5,2023.9,8.02618825]
[1772036180947,1.23688187,2024.5,2023.9,5.57927617]
[1772036181451,0.002,2024.5,2023.9,20.2472]
[1772036181654,1.23466304,2024.9,2024.0,8.02618825]
[1772036181813,1.23466304,2024.9,2024.3,11.606174]
[1772036182016,1.23466304,2024.9,2024.3,1.922]
[1772036182648,7.01175245,2025.1,2024.4,18.95495]
[1772036182855,8.34827784,2025.7,2024.7,2.44691208]
[1772036183151,5.77720448,2025.5,2024.8,1.922]
[1772036183525,1.23432408,2025.4,2024.8,1.922]
[1772036184217,1.23432408,2025.4,2024.8,3.15668845]
[1772036184531,1.23414128,2025.7,2025.0,2.44691208]
[1772036184841,1.23414128,2025.7,2025.0,8.02618825]
[1772036185220,1.23414128,2025.7,2025.1,5.57927617]
[1772036185819,4.93586168,2026.0,2025.1,5.57927617]
[1772036186017,4.93586168,2026.0,2025.1,6.81377701]
[1772036186212,4.93586168,2026.0,2025.1,6.81377533]
[1772036186418,4.93586168,2026.0,2025.1,6.8137792]
[1772036186617,4.93586168,2026.0,2025.1,5.57927617]
[1772036186913,10.86072573,2026.0,2025.1,6.81377968]
[1772036187116,10.86072573,2026.0,2025.2,2.44691208]
[1772036187451,10.86072573,2026.0,2025.3,1.921]
[1772036187744,4.93586168,2026.0,2025.3,1.921]
[1772036187957,4.93282593,2027.4,2025.9,1.65974803]
[1772036188252,16.78181452,2027.2,2026.3,7.130695]
[1772036188550,5.92486405,2027.0,2025.9,1.32048185]
[1772036188713,8.61562202,2027.1,2025.6,4.36691208]
[1772036188714,5.92486405,2026.7,2026.1,0.7]
[1772036188912,5.92486405,2026.7,2025.7,6.348523]
[1772036189119,6.16870994,2026.6,2025.7,6.348523]
[1772036189324,6.16870994,2026.6,2025.8,10.711983]
[1772036189543,5.92486405,2027.0,2026.0,2.44691208]
[1772036189544,6.16870994,2026.5,2026.0,2.44691208]
[1772036189725,6.16870994,2026.9,2026.0,2.44691208]
[1772036189930,1.23347148,2026.8,2026.0,3.68084841]
[1772036190145,7.40218142,2026.8,2026.1,1.92]
[1772036190321,6.16870994,2026.7,2026.1,1.92]
[1772036190522,6.16870994,2026.6,2025.7,5.47759722]
[1772036190744,12.26225746,2026.6,2025.8,1.919]
[1772036190947,6.16870994,2026.5,2025.8,1.919]
[1772036191315,1.23347148,2026.8,2026.1,2.44691208]
[1772036191548,4.40813817,2026.9,2026.1,2.44691208]
[1772036191741,0.002,2026.5,2026.2,18.488155]
[1772036191930,1.23328893,2027.1,2026.3,1.918]
[1772036192436,0.002,2026.7,2026.3,1.918]
[1772036193954,0.002,2026.7,2025.8,1.23403669]
[1772036194148,9.77599194,2026.7,2025.9,1.918]
[1772036194319,6.09354752,2026.6,2025.9,1.918]
[1772036194648,1.23553234,2026.7,2025.9,5.59889994]
[1772036194952,1.23553234,2026.7,2026.0,30.0]
[1772036195125,1.23553234,2026.7,2025.9,3.15201546]
[1772036195326,1.23553234,2026.7,2025.9,1.918]
[1772036195644,7.32907986,2026.7,2025.9,1.918]
[1772036196046,7.32907986,2026.7,2025.9,3.15201286]
[1772036196343,7.32907986,2026.7,2025.9,3.15201186]
[1772036196584,7.32907986,2026.7,2025.9,3.15200253]
[1772036196750,7.32907986,2026.7,2025.9,3.15201717]
[1772036197048,7.32907986,2026.7,2025.9,1.918]
[1772036197257,0.002,2026.7,2025.9,1.918]
[1772036197424,1.23554208,2026.7,2026.2,13.685786]
[1772036197618,1.23553549,2026.7,2026.2,13.685786]
[1772036197851,1.23553549,2026.7,2025.9,3.15199001]
[1772036198028,0.002,2026.7,2026.1,2.44691208]
[1772036198548,0.002,2026.7,2026.2,21.232915]
[1772036199051,0.002,2026.7,2026.0,13.744152]
[1772036199347,6.09554752,2026.7,2025.9,1.918]
[1772036199748,6.09554752,2026.7,2025.9,3.15201274]
[1772036199946,6.09554752,2026.7,2025.9,1.918]
[1772036200155,1.23359321,2026.6,2025.9,1.918]
[1772036200732,7.32714073,2026.6,2025.9,1.918]
[1772036201338,7.32714073,2026.6,2025.9,1.9172]
[1772036201534,7.32634073,2026.6,2025.9,3.15121436]
[1772036201743,7.32634073,2026.6,2025.9,1.9172]
[1772036203042,6.09354752,2026.4,2025.1,1.32048185]
[1772036203238,6.09354752,2026.2,2025.2,7.749576]
[1772036203439,6.09354752,2026.2,2025.2,3.953874]
[1772036203636,6.09354752,2026.2,2025.1,1.919]
[1772036203841,6.09354752,2025.6,2024.7,3.222593]
[1772036204039,6.09354752,2025.5,2024.4,3.825449]
[1772036204367,2.44691208,2026.1,2024.4,3.825449]
[1772036204368,1.23383673,2026.2,2025.3,2.44691208]
[1772036204539,1.23383673,2026.2,2025.0,11.05160253]
[1772036204540,6.09354752,2026.1,2025.2,13.5486]
[1772036204735,6.09354752,2026.1,2025.1,1.918]
[1772036204937,6.09274752,2026.1,2025.1,1.918]
[1772036205168,6.09354752,2025.9,2024.9,7.77348]
[1772036205660,6.09354752,2025.9,2024.9,8.1963]
[1772036206262,6.09354752,2025.9,2025.0,16.769147]
[1772036206467,6.09354752,2025.9,2024.8,1.918]
[1772036206468,6.09354752,2025.7,2024.8,1.23466093]
[1772036206632,6.09354752,2025.5,2024.5,14.095949]
[1772036206832,6.09354752,2025.5,2024.5,13.516872]
[1772036207058,6.09354752,2025.3,2024.4,3.618]
[1772036207256,6.09354752,2025.3,2024.2,1.23501011]
[1772036207463,6.09354752,2025.3,2024.4,1.917]
[1772036207759,6.09354752,2025.1,2024.4,1.917]
[1772036207961,6.09354752,2025.0,2024.1,0.001]
[1772036208328,6.09354752,2024.9,2024.1,1.23611112]
[1772036208531,9.79954752,2025.3,2024.3,3.68185784]
[1772036208958,3.706,2025.2,2024.3,3.498]
[1772036209144,3.706,2025.1,2024.2,1.23500717]
[1772036209332,6.09354752,2025.3,2024.2,1.23500717]
[1772036209333,3.7052,2025.2,2024.3,1.916]
[1772036209954,9.79874752,2025.3,2024.3,1.916]
[1772036210565,1.23444598,2025.2,2024.3,3.1509427]
[1772036210870,6.09354752,2025.1,2024.2,14.916]
[1772036211076,6.09354752,2024.9,2024.1,0.001]
[1772036211841,2.44691208,2025.0,2024.1,0.001]
[1772036211842,6.09354752,2024.6,2024.1,0.001]
[1772036212645,1.2348728,2024.5,2024.1,0.001]
[1772036213243,1.23462887,2024.9,2024.1,0.001]
[1772036214254,7.32817639,2024.9,2024.1,0.001]
[1772036216878,7.32737639,2024.9,2024.1,0.001]
[1772036218180,7.32737639,2024.9,2024.3,0.001]
[1772036218376,0.002,2024.7,2024.3,0.001]
[1772036220082,1.23450693,2025.1,2024.3,0.001]
[1772036220279,7.43831106,2025.1,2024.3,0.001]
[1772036220447,6.20380413,2024.8,2024.3,0.001]
[1772036220660,1.23450693,2025.1,2024.3,0.001]
[1772036220855,1.23450693,2025.1,2024.4,17.587659]
[1772036221074,1.23438502,2025.3,2024.5,1.2348728]
[1772036221277,7.43818915,2025.3,2024.4,2.416586]
[1772036221478,7.43818915,2025.3,2024.3,0.001]
[1772036221661,7.43818915,2025.3,2024.4,20.249714]
[1772036222055,7.43818915,2025.3,2024.3,1.23596969]
[1772036222258,7.43818915,2025.3,2024.4,20.249714]
[1772036222456,7.43818915,2025.3,2024.4,1.91]
[1772036223080,7.43818915,2025.3,2024.4,3.14487725]
[1772036223660,7.43818915,2025.3,2024.5,30.0]
[1772036223860,1.23420221,2025.6,2024.7,30.0]
[1772036224695,1.23420221,2025.6,2025.0,11.205619]
[1772036224856,4.93611929,2025.9,2025.0,1.912]
[1772036224857,1.23408036,2025.9,2025.0,1.912]
[1772036225057,7.43788449,2025.9,2025.0,1.912]
[1772036225864,7.43708449,2025.9,2025.0,1.912]
[1772036226061,7.43708449,2025.9,2025.0,3.14656333]
[1772036226487,6.20380413,2025.7,2024.5,1.912]
[1772036226658,6.20380413,2025.5,2024.5,1.912]
[1772036227255,1.23432408,2025.4,2024.6,19.570088]
[1772036227565,1.23432408,2025.4,2024.6,5.79868072]
[1772036227764,7.43812821,2025.4,2024.5,1.912]
[1772036228368,7.43812821,2025.4,2024.5,3.14686948]
[1772036229456,7.43812821,2025.4,2024.3,0.001]
[1772036229664,6.20380413,2025.2,2024.3,0.001]
[1772036230010,3.41828045,2025.3,2024.3,0.001]
[1772036230011,6.20380413,2025.0,2024.3,0.001]
[1772036230290,6.20380413,2025.0,2024.1,0.001]
[1772036230505,6.20380413,2024.9,2024.1,0.001]
[1772036230665,6.20380413,2024.6,2024.0,0.001]
[1772036230867,6.20380413,2024.5,2024.0,0.001]
[1772036231314,6.20380413,2024.5,2023.6,0.001]
[1772036231315,6.20380413,2024.4,2023.6,0.001]
[1772036231596,6.20380413,2024.1,2023.0,10.0]
[1772036231795,6.20380413,2023.8,2023.0,10.0]
[1772036231999,8.03780413,2024.1,2023.1,14.435203]
[1772036232195,1.834,2024.1,2023.1,8.17]
[1772036232495,6.20380413,2024.0,2023.0,10.0]
[1772036232975,6.20380413,2024.0,2023.0,11.2357853]
[1772036233175,6.20380413,2024.0,2023.0,17.03446602]
[1772036233496,1.23523889,2023.9,2023.0,11.2357853]
[1772036233705,7.43904302,2023.9,2023.0,10.0]
[1772036233866,7.43904302,2023.9,2023.8,0.001]
[1772036234068,7.43904302,2023.9,2023.0,10.0]
[1772036234687,7.43904302,2023.9,2023.0,11.23576757]
[1772036234987,1.23523889,2023.9,2023.0,20.45272874]
[1772036235489,1.23523889,2023.9,2023.1,22.120773]
[1772036236010,4.94050968,2024.1,2023.1,29.15513258]
[1772036236165,4.94050968,2024.1,2023.4,30.0]
[1772036236364,4.94050968,2024.1,2023.4,1.912]
[1772036237087,6.20380413,2024.0,2023.4,1.912]
[1772036237260,4.94050968,2024.1,2023.4,1.912]
[1772036237465,12.97808377,2024.6,2023.5,30.0]
[1772036237681,1.2348728,2024.5,2023.6,10.52986]
[1772036237991,1.2348728,2024.5,2023.5,5.79868072]
[1772036237992,6.20380413,2024.4,2023.4,3.14754323]
[1772036238782,1.2348728,2024.5,2023.7,19.287263]
[1772036238979,1.2348728,2024.5,2023.7,15.266474]
[1772036239697,1.23468984,2024.8,2023.9,30.0]
[1772036239900,11.14233497,2024.9,2024.0,1.914]
[1772036240081,6.20380413,2024.8,2024.0,1.914]
[1772036240496,6.20380413,2024.8,2024.0,3.14917318]
[1772036241000,6.20380413,2024.8,2024.0,1.914]
[1772036241576,4.93853084,2024.9,2024.0,3.14916704]
[1772036241885,7.43812821,2025.4,2024.4,1.2349338]
[1772036242276,7.43812821,2025.4,2024.5,1.913]
[1772036244007,7.43994541,2025.7,2024.6,1.23481181]
[1772036244672,0.002,2025.9,2025.1,9.21696117]
[1772036244999,1.23603447,2025.9,2025.3,17.093299]
[1772036245302,1.23603447,2025.9,2025.3,15.635742]
[1772036245481,0.002,2025.9,2025.3,15.635742]
[1772036246000,0.002,2025.9,2025.3,16.8700817]
[1772036246199,0.002,2025.9,2025.3,15.630298]
[1772036247984,0.002,2025.9,2025.3,12.995802]
[1772036248308,0.002,2025.9,2025.4,1.23432408]
[1772036249780,0.002,2025.9,2025.2,1.912]
[1772036249983,0.002,2025.9,2025.3,16.705942]
[1772036250183,0.002,2025.9,2025.4,16.816]
[1772036250598,5.72329885,2025.9,2025.3,16.705942]
[1772036250899,5.72129885,2025.8,2025.0,3.888588]
[1772036251101,0.002,2025.9,2025.0,3.888588]
[1772036251306,0.002,2025.9,2025.1,28.14599457]
[1772036251516,0.002,2025.9,2025.4,30.0]
[1772036251809,0.002,2025.9,2025.4,22.762854]
[1772036252402,0.002,2025.9,2025.2,1.23444598]
[1772036252721,0.002,2025.9,2025.3,18.865816]
[1772036252917,0.002,2025.9,2025.3,17.682816]
[1772036254289,0.002,2025.9,2025.4,1.23432408]
[1772036254710,0.002,2025.9,2025.3,7.36418984]
[1772036254916,0.002,2025.9,2025.4,21.581171]
[1772036255517,0.002,2025.9,2025.5,1.929]
[1772036255828,0.002,2025.9,2025.5,1.93]
[1772036258427,0.002,2025.9,2025.5,3.16424843]
[1772036258905,1.23587662,2026.2,2025.5,9.294103]
[1772036259112,0.002,2025.7,2025.5,9.294103]
[1772036259304,0.001,2025.7,2025.5,9.294103]
[1772036259507,1.23569374,2026.5,2025.8,30.0]
[1772036259822,0.002,2026.5,2025.9,1.935]
[1772036259992,0.002,2026.5,2026.1,30.0]
[1772036260201,0.002,2026.5,2026.2,1.937]
[1772036261228,5.72129885,2027.1,2026.2,1.937]
[1772036261430,6.95379493,2028.5,2027.3,6.12985457]
[1772036261731,0.85676309,2028.5,2027.5,8.20351]
[1772036261938,0.85676309,2028.5,2027.2,6.12985457]
[1772036262094,5.65066511,2028.6,2027.3,14.81468]
[1772036262095,9.1395793,2028.3,2027.3,14.81468]
[1772036262444,5.72129885,2028.2,2027.3,14.81468]
[1772036262603,5.72129885,2028.1,2027.2,1.942]
[1772036263516,6.95398394,2028.1,2027.2,1.942]
[1772036263696,6.95398394,2028.1,2027.2,1.941]
[1772036263930,5.72129885,2028.1,2027.2,1.941]
[1772036264229,3.06157898,2028.3,2027.3,28.818445]
[1772036265124,3.06157898,2028.3,2027.3,6.99701]
[1772036265430,5.72129885,2028.2,2027.4,1.941]
[1772036265831,9.1395793,2028.2,2027.2,16.01984]
[1772036266129,5.72129885,2028.1,2027.2,16.01984]
[1772036266311,5.72129885,2028.1,2027.2,2.319903]
[1772036266507,5.72129885,2028.1,2027.1,1.94]
[1772036266837,1.23257898,2028.3,2027.3,17.631314]